[Event "27th OIBM 2024"]
[Site "Gmund am Tegernsee"]
[Date "2024.10.27"]
[Round "2.22"]
[White "Grewenig, Jan"]
[Black "Stopa, Jacek"]
[Result "0-1"]
[ECO "C08"]
[WhiteElo "2120"]
[BlackElo "2326"]
[Annotator "RC"]
[PlyCount "52"]
[EventDate "2024.09.16"]
[EventType "swiss"]
[EventCountry "GER"]
[SourceTitle "playchess.com"]
[Source "ChessBase"]
[SourceQuality "1"]
[TimeControl "40/5400+30:1800+30"]

1. e4 {[%emt 0:00:04]} e6 {[%emt 0:00:04]} 2. d4 {[%emt 0:00:10]} d5 {[%emt 0:00:04]} 3. Nd2 {[%emt 0:00:13]} c5 {[%emt 0:00:13]} 4. exd5 {[%emt 0:00:41]} exd5 {[%emt 0:00:05]} 5. Ngf3 {[%emt 0:00:31]} Nf6 {[%emt 0:00:05]} 6. Bb5+ {[%emt 0:07:02]} Bd7 {[%emt 0:00:12]} 7. Bxd7+ {[%emt 0:00:06]} Nbxd7 {[%emt 0:00:05]} 8. O-O {[%emt 0:00:28]} Be7 {[%emt 0:00:04]} 9. dxc5 {[%emt 0:08:11]} Nxc5 {[%emt 0:00:04]} 10. Nb3 {[%emt 0:02:07]} Nce4 {[%emt 0:00:07]} 11. Qd3 {[%emt 0:07:08]} O-O {[%emt 0:00:18]} 12. Be3 {[%emt 0:00:28]} Re8 {[%emt 0:03:26]} 13. Rad1 {[%emt 0:06:31]} Qc7 {[%emt 0:01:41]} 14. Nbd4 {[%emt 0:10:54]} a6 {[%emt 0:04:30]} 15. Nf5 {[%emt 0:10:26]} Bf8 {[%emt 0:01:08]} 16. Bd4 {[%emt 0:08:45]} Rad8 {[%emt 0:03:05]} 17. Rfe1 {[%emt 0:11:33]} Re6 {[%emt 0:11:28]} 18. Bxf6 {[%emt 0:04:10]} Nxf6 {[%emt 0:00:42]} 19. Rxe6 {[%emt 0:09:24]} fxe6 {[%emt 0:00:07]} 20. N5d4 {[%emt 0:00:04]} Re8 {[%emt 0:00:24]} 21. Ng5 {[%emt 0:02:28]} Qe5 {[%emt 0:09:54]} 22. f4 {[%emt 0:05:46]} Qxf4 {[%emt 0:00:22]} 23. Ndxe6 {[%emt 0:00:06]} Qe5 {[%emt 0:05:56]} 24. Rf1 {[%emt 0:02:42]} Rxe6 {[%emt 0:01:16]} 25. Rxf6 {[%emt 0:00:49]} Bc5+ {[%emt 0:00:22]} 26. Kh1 {[%emt 0:00:10]} Qxg5 {[%emt 0:00:49]} 0-1

[Event "27th OIBM 2024"]
[Site "Gmund am Tegernsee"]
[Date "2024.10.27"]
[Round "2.23"]
[White "Gschiel, Alexander"]
[Black "Butenandt, Svenja"]
[Result "1-0"]
[ECO "B13"]
[WhiteElo "2326"]
[BlackElo "2141"]
[Annotator "RC"]
[PlyCount "56"]
[EventDate "2024.09.16"]
[EventType "swiss"]
[EventCountry "GER"]
[SourceTitle "playchess.com"]
[Source "ChessBase"]
[SourceQuality "1"]
[TimeControl "40/5400+30:1800+30"]

1. d4 {[%emt 0:00:07]} Nf6 {[%emt 0:00:05]} 2. c4 {[%emt 0:00:13]} e6 {[%emt 0:00:05]} 3. Nf3 {[%emt 0:00:20]} c5 {[%emt 0:00:20]} 4. e3 {[%emt 0:00:18]} cxd4 {[%emt 0:00:50]} 5. exd4 {[%emt 0:00:07]} d5 {[%emt 0:01:09]} 6. c5 {[%emt 0:00:36]} Nc6 {[%emt 0:15:58]} 7. a3 {[%emt 0:04:29]} a5 {[%emt 0:05:31]} 8. Nc3 {[%emt 0:02:00]} Ne4 {[%emt 0:13:39]} 9. Na4 {[%emt 0:16:33]} e5 {[%emt 0:11:24]} 10. dxe5 {[%emt 0:08:36]} Bxc5 {[%emt 0:11:13]} 11. Nxc5 {[%emt 0:01:20]} Nxc5 {[%emt 0:00:30]} 12. Bg5 {[%emt 0:05:46]} Qd7 {[%emt 0:00:26]} 13. Qc2 {[%emt 0:07:03]} Ne6 {[%emt 0:05:03]} 14. Bd2 {[%emt 0:04:45]} Ned4 {[%emt 0:08:21]} 15. Nxd4 {[%emt 0:03:39]} Nxd4 {[%emt 0:00:02]} 16. Qc5 {[%emt 0:00:39]} Ne6 {[%emt 0:00:30]} 17. Qb6 {[%emt 0:00:30]} O-O {[%emt 0:00:30]} 18. Bxa5 {[%emt 0:01:36]} Nf4 {[%emt 0:07:57]} 19. Bd2 {[%emt 0:07:33]} Qg4 {[%emt 0:02:29]} 20. f3 {[%emt 0:02:50]} Nxg2+ {[%emt 0:07:09]} 21. Kf2 {[%emt 0:05:36]} Qh4+ {[%emt 0:00:20]} 22. Kxg2 {[%emt 0:00:05]} Re8 {[%emt 0:02:06]} 23. Qf2 {[%emt 0:03:51]} Qxf2+ {[%emt 0:00:08]} 24. Kxf2 {[%emt 0:00:30]} Bf5 {[%emt 0:02:40]} 25. h4 {[%emt 0:02:38]} Rxe5 {[%emt 0:02:10]} 26. Rg1 {[%emt 0:00:16]} Ra4 {[%emt 0:00:30]} 27. b4 {[%emt 0:00:30]} Re6 {[%emt 0:00:30]} 28. Rg6 {[%emt 0:00:30]} Re5 {[%emt 0:00:51]} 1-0

[Event "27th OIBM 2024"]
[Site "Gmund am Tegernsee"]
[Date "2024.10.27"]
[Round "2.24"]
[White "Rey Malde, Henrique"]
[Black "Farokhi, Keyvan"]
[Result "0-1"]
[ECO "C47"]
[WhiteElo "2118"]
[BlackElo "2320"]
[Annotator "RC"]
[PlyCount "102"]
[EventDate "2024.09.16"]
[EventType "swiss"]
[EventCountry "GER"]
[SourceTitle "playchess.com"]
[Source "ChessBase"]
[SourceQuality "1"]
[TimeControl "40/5400+30:1800+30"]

1. e4 {[%emt 0:00:03]} e5 {[%emt 0:00:20]} 2. Nf3 {[%emt 0:00:10]} Nc6 {[%emt 0:00:07]} 3. Nc3 {[%emt 0:00:13]} Nf6 {[%emt 0:00:38]} 4. d4 {[%emt 0:00:10]} exd4 {[%emt 0:01:30]} 5. Nxd4 {[%emt 0:00:08]} Bb4 {[%emt 0:00:06]} 6. Nxc6 {[%emt 0:00:27]} bxc6 {[%emt 0:00:07]} 7. Bd3 {[%emt 0:00:15]} d5 {[%emt 0:00:07]} 8. exd5 {[%emt 0:00:17]} O-O {[%emt 0:00:07]} 9. O-O {[%emt 0:00:08]} cxd5 {[%emt 0:00:05]} 10. h3 {[%emt 0:00:19]} Rb8 {[%emt 0:00:36]} 11. a3 {[%emt 0:00:38]} Be7 {[%emt 0:06:57]} 12. b4 {[%emt 0:01:31]} c5 {[%emt 0:04:30]} 13. bxc5 {[%emt 0:07:54]} Bxc5 {[%emt 0:00:29]} 14. Bf4 {[%emt 0:00:20]} Rb7 {[%emt 0:04:29]} 15. Ba6 {[%emt 0:16:26]} Rd7 {[%emt 0:02:40]} 16. Bb5 {[%emt 0:06:20]} Re7 {[%emt 0:06:57]} 17. Re1 {[%emt 0:26:52]} Rxe1+ {[%emt 0:06:11]} 18. Qxe1 {[%emt 0:00:02]} Qa5 {[%emt 0:00:14]} 19. Rb1 {[%emt 0:14:17]} Bf5 {[%emt 0:16:19]} 20. Bd2 {[%emt 0:02:52]} Qd8 {[%emt 0:08:01]} 21. Qc1 {[%emt 0:02:49]} Qd6 {[%emt 0:06:08]} 22. Bf4 {[%emt 0:00:21]} Bxf2+ {[%emt 0:03:03]} 23. Kf1 {[%emt 0:08:13]} Qc5 {[%emt 0:00:16]} 24. Na4 {[%emt 0:06:43]} Qxc2 {[%emt 0:00:24]} 25. Qxc2 {[%emt 0:00:06]} Bxc2 {[%emt 0:00:06]} 26. Rc1 {[%emt 0:01:12]} Bxa4 {[%emt 0:00:06]} 27. Bxa4 {[%emt 0:00:02]} Bb6 {[%emt 0:01:45]} 28. Bd6 {[%emt 0:01:24]} Ra8 {[%emt 0:00:12]} 29. Bb3 {[%emt 0:00:19]} h6 {[%emt 0:04:39]} 30. Be5 {[%emt 0:03:42]} Rd8 {[%emt 0:06:08]} 31. a4 {[%emt 0:00:26]} Ne4 {[%emt 0:01:22]} 32. Rd1 {[%emt 0:00:41]} d4 {[%emt 0:04:03]} 33. Bc2 {[%emt 0:00:47]} Nc3 {[%emt 0:01:24]} 34. Rd3 {[%emt 0:00:02]} Rd5 {[%emt 0:00:23]} 35. Bg3 {[%emt 0:00:52]} Rf5+ {[%emt 0:01:16]} 36. Rf3 {[%emt 0:00:41]} Rxf3+ {[%emt 0:00:19]} 37. gxf3 {[%emt 0:00:01]} d3 {[%emt 0:01:15]} 38. Bxd3 {[%emt 0:00:44]} Nxa4 {[%emt 0:00:02]} 39. Bc2 {[%emt 0:00:56]} Nc5 {[%emt 0:00:15]} 40. Ke2 {[%emt 0:00:28]} Ne6 {[%emt 0:01:09]} 41. Bd1 {[%emt 0:03:20]} Bc7 {[%emt 0:04:58]} 42. Bf2 {[%emt 0:02:03]} a5 {[%emt 0:00:27]} 43. h4 {[%emt 0:00:32]} h5 {[%emt 0:00:40]} 44. Be3 {[%emt 0:09:35]} Bd8 {[%emt 0:00:45]} 45. Bd2 {[%emt 0:02:24]} Nd4+ {[%emt 0:00:20]} 46. Kd3 {[%emt 0:01:13]} Nf5 {[%emt 0:00:09]} 47. Ke4 {[%emt 0:00:21]} Nxh4 {[%emt 0:00:13]} 48. Kd5 {[%emt 0:00:18]} Nf5 {[%emt 0:00:47]} 49. Kc6 {[%emt 0:00:24]} h4 {[%emt 0:00:22]} 50. Bf4 {[%emt 0:05:07]} h3 {[%emt 0:00:58]} 51. Bh2 {[%emt 0:05:42]} Bh4 {[%emt 0:00:19]} 0-1

[Event "27th OIBM 2024"]
[Site "Gmund am Tegernsee"]
[Date "2024.10.27"]
[Round "2.25"]
[White "Ernst, Robert"]
[Black "Atoyan, Alberto"]
[Result "1/2-1/2"]
[ECO "D35"]
[WhiteElo "2319"]
[BlackElo "2133"]
[Annotator "RC"]
[PlyCount "61"]
[EventDate "2024.09.16"]
[EventType "swiss"]
[EventCountry "GER"]
[SourceTitle "playchess.com"]
[Source "ChessBase"]
[SourceQuality "1"]
[TimeControl "40/5400+30:1800+30"]

1. d4 {[%emt 0:00:04]} Nf6 {[%emt 0:00:14]} 2. c4 {[%emt 0:00:11]} e6 {[%emt 0:00:10]} 3. Nc3 {[%emt 0:00:08]} d5 {[%emt 0:00:09]} 4. cxd5 {[%emt 0:00:07]} Nxd5 {[%emt 0:00:09]} 5. e4 {[%emt 0:00:11]} Nxc3 {[%emt 0:00:05]} 6. bxc3 {[%emt 0:00:09]} c5 {[%emt 0:00:08]} 7. Rb1 {[%emt 0:00:06]} Be7 {[%emt 0:00:30]} 8. Nf3 {[%emt 0:00:10]} O-O {[%emt 0:00:37]} 9. h4 {[%emt 0:02:13]} b6 {[%emt 0:06:29]} 10. h5 {[%emt 0:00:43]} Bb7 {[%emt 0:04:45]} 11. h6 {[%emt 0:09:08]} g6 {[%emt 0:02:09]} 12. Bd3 {[%emt 0:02:22]} cxd4 {[%emt 0:13:10]} 13. cxd4 {[%emt 0:00:37]} Nc6 {[%emt 0:01:05]} 14. Be2 {[%emt 0:08:08]} Na5 {[%emt 0:06:02]} 15. Qd3 {[%emt 0:12:52]} f5 {[%emt 0:12:01]} 16. exf5 {[%emt 0:02:44]} exf5 {[%emt 0:00:55]} 17. Qe3 {[%emt 0:09:30]} Bf6 {[%emt 0:03:21]} 18. O-O {[%emt 0:04:25]} Qd5 {[%emt 0:04:08]} 19. Rb5 {[%emt 0:02:39]} Qe4 {[%emt 0:06:27]} 20. Qxe4 {[%emt 0:00:58]} fxe4 {[%emt 0:01:35]} 21. Ne5 {[%emt 0:00:29]} Rfd8 {[%emt 0:01:06]} 22. Be3 {[%emt 0:03:55]} Ba6 {[%emt 0:04:12]} 23. Rb2 {[%emt 0:00:21]} Bxe5 {[%emt 0:00:29]} 24. dxe5 {[%emt 0:00:54]} Bd3 {[%emt 0:08:39]} 25. Rc1 {[%emt 0:00:25]} Rac8 {[%emt 0:07:09]} 26. Rxc8 {[%emt 0:16:36]} Rxc8 {[%emt 0:00:09]} 27. Bd1 {[%emt 0:00:06]} Nc4 {[%emt 0:02:21]} 28. Bb3 {[%emt 0:00:10]} Kf8 {[%emt 0:00:32]} 29. Bxc4 {[%emt 0:00:21]} Rxc4 {[%emt 0:00:07]} 30. Rb5 {[%emt 0:08:19]} Rc1+ {[%emt 0:01:49]} 31. Bxc1 {[%emt 0:00:29]} 1/2-1/2

[Event "27th OIBM 2024"]
[Site "Gmund am Tegernsee"]
[Date "2024.10.27"]
[Round "2.26"]
[White "Malinowsky, Levi"]
[Black "Goh, Zi Han"]
[Result "1-0"]
[ECO "B90"]
[WhiteElo "2117"]
[BlackElo "2319"]
[Annotator "RC"]
[PlyCount "135"]
[EventDate "2024.09.16"]
[EventType "swiss"]
[EventCountry "GER"]
[SourceTitle "playchess.com"]
[Source "ChessBase"]
[SourceQuality "1"]
[TimeControl "40/5400+30:1800+30"]

1. e4 {[%emt 0:00:04]} c5 {[%emt 0:00:53]} 2. Nf3 {[%emt 0:00:09]} d6 {[%emt 0:00:13]} 3. d4 {[%emt 0:00:14]} cxd4 {[%emt 0:00:32]} 4. Nxd4 {[%emt 0:00:06]} Nf6 {[%emt 0:00:18]} 5. Nc3 {[%emt 0:00:09]} a6 {[%emt 0:00:15]} 6. a3 {[%emt 0:00:10]} e5 {[%emt 0:03:54]} 7. Nf5 {[%emt 0:00:39]} d5 {[%emt 0:17:15]} 8. Bg5 {[%emt 0:01:41]} d4 {[%emt 0:01:42]} 9. Bxf6 {[%emt 0:00:49]} Qxf6 {[%emt 0:01:21]} 10. Nd5 {[%emt 0:00:52]} Qd8 {[%emt 0:00:17]} 11. Qg4 {[%emt 0:06:53]} g6 {[%emt 0:06:50]} 12. Qg3 {[%emt 0:01:56]} Bd6 {[%emt 0:15:50]} 13. Nxd6+ {[%emt 0:04:38]} Qxd6 {[%emt 0:01:18]} 14. O-O-O {[%emt 0:12:49]} Nc6 {[%emt 0:10:07]} 15. Bc4 {[%emt 0:09:07]} Be6 {[%emt 0:19:09]} 16. Nf6+ {[%emt 0:09:59]} Kf8 {[%emt 0:02:48]} 17. Bxe6 {[%emt 0:03:08]} Qxe6 {[%emt 0:01:26]} 18. Nd5 {[%emt 0:00:56]} Rc8 {[%emt 0:00:19]} 19. f4 {[%emt 0:06:40]} exf4 {[%emt 0:00:42]} 20. Qxf4 {[%emt 0:00:33]} Kg7 {[%emt 0:01:13]} 21. Rhf1 {[%emt 0:03:13]} f5 {[%emt 0:03:38]} 22. Qg5 {[%emt 0:04:51]} Qxe4 {[%emt 0:06:16]} 23. Qf6+ {[%emt 0:04:34]} Kg8 {[%emt 0:00:04]} 24. Qd6 {[%emt 0:04:44]} Qh4 {[%emt 0:01:03]} 25. Qe6+ {[%emt 0:07:21]} Kg7 {[%emt 0:00:05]} 26. Qd7+ {[%emt 0:00:28]} Kh6 {[%emt 0:00:01]} 27. Qxb7 {[%emt 0:03:22]} Qe4 {[%emt 0:03:44]} 28. Qb3 {[%emt 0:03:43]} Na5 {[%emt 0:02:26]} 29. Qh3+ {[%emt 0:00:20]} Kg7 {[%emt 0:00:01]} 30. Nb4 {[%emt 0:00:38]} Nc4 {[%emt 0:00:29]} 31. Qd3 {[%emt 0:04:13]} a5 {[%emt 0:00:45]} 32. Qxe4 {[%emt 0:02:09]} fxe4 {[%emt 0:00:06]} 33. Nd5 {[%emt 0:00:06]} Rhd8 {[%emt 0:01:16]} 34. Rxd4 {[%emt 0:01:54]} Ne3 {[%emt 0:00:20]} 35. Nxe3 {[%emt 0:00:45]} Rxd4 {[%emt 0:00:04]} 36. b3 {[%emt 0:01:41]} Rf8 {[%emt 0:00:51]} 37. Rd1 {[%emt 0:00:36]} Rxd1+ {[%emt 0:00:08]} 38. Kxd1 {[%emt 0:00:07]} Rd8+ {[%emt 0:00:46]} 39. Ke2 {[%emt 0:00:08]} Kf6 {[%emt 0:00:50]} 40. a4 {[%emt 0:02:02]} Ke5 {[%emt 0:00:42]} 41. Nc4+ {[%emt 0:04:56]} Kd4 {[%emt 0:00:06]} 42. Kd2 {[%emt 0:00:49]} Rf8 {[%emt 0:12:25]} 43. c3+ {[%emt 0:00:40]} Kd5 {[%emt 0:00:06]} 44. Ke2 {[%emt 0:02:12]} g5 {[%emt 0:11:07]} 45. Nxa5 {[%emt 0:01:41]} h5 {[%emt 0:00:29]} 46. Nc4 {[%emt 0:00:51]} g4 {[%emt 0:00:25]} 47. Ne3+ {[%emt 0:01:09]} Kc6 {[%emt 0:00:32]} 48. b4 {[%emt 0:01:16]} Ra8 {[%emt 0:02:09]} 49. a5 {[%emt 0:00:06]} Kb5 {[%emt 0:00:09]} 50. Nd5 {[%emt 0:01:17]} Rc8 {[%emt 0:04:38]} 51. Ke3 {[%emt 0:02:59]} Rc4 {[%emt 0:00:14]} 52. Kd2 {[%emt 0:00:28]} Rc6 {[%emt 0:00:40]} 53. Kc2 {[%emt 0:00:56]} h4 {[%emt 0:03:13]} 54. Kb3 {[%emt 0:00:40]} Rd6 {[%emt 0:00:33]} 55. c4+ {[%emt 0:00:32]} Ka6 {[%emt 0:00:06]} 56. Kc3 {[%emt 0:01:03]} Rd8 {[%emt 0:01:02]} 57. Kd4 {[%emt 0:04:28]} Rf8 {[%emt 0:00:07]} 58. c5 {[%emt 0:02:59]} Kb5 {[%emt 0:00:42]} 59. a6 {[%emt 0:05:11]} Kxa6 {[%emt 0:00:01]} 60. c6 {[%emt 0:00:20]} h3 {[%emt 0:01:00]} 61. gxh3 {[%emt 0:00:33]} gxh3 {[%emt 0:00:05]} 62. Kc5 {[%emt 0:00:30]} Rf2 {[%emt 0:00:53]} 63. b5+ {[%emt 0:00:19]} Ka7 {[%emt 0:00:33]} 64. b6+ {[%emt 0:00:10]} Kb8 {[%emt 0:00:31]} 65. c7+ {[%emt 0:00:41]} Kb7 {[%emt 0:00:06]} 66. Ne7 {[%emt 0:00:28]} Rc2+ {[%emt 0:00:23]} 67. Kd4 {[%emt 0:00:05]} Rd2+ {[%emt 0:01:15]} 68. Kc3 {[%emt 0:00:20]} 1-0

[Event "27th OIBM 2024"]
[Site "Gmund am Tegernsee"]
[Date "2024.10.27"]
[Round "2.27"]
[White "Shen, Tingrui"]
[Black "Kozlovic, Jernej"]
[Result "0-1"]
[ECO "D32"]
[WhiteElo "2112"]
[BlackElo "2313"]
[Annotator "RC"]
[PlyCount "78"]
[EventDate "2024.09.16"]
[EventType "swiss"]
[EventCountry "GER"]
[SourceTitle "playchess.com"]
[Source "ChessBase"]
[SourceQuality "1"]
[TimeControl "40/5400+30:1800+30"]

1. Nf3 {[%emt 0:00:09]} d5 {[%emt 0:00:09]} 2. d4 {[%emt 0:00:26]} c5 {[%emt 0:00:12]} 3. c4 {[%emt 0:02:49]} e6 {[%emt 0:00:11]} 4. cxd5 {[%emt 0:00:19]} exd5 {[%emt 0:00:12]} 5. Nc3 {[%emt 0:00:36]} Nf6 {[%emt 0:00:11]} 6. Bg5 {[%emt 0:00:56]} Be6 {[%emt 0:00:11]} 7. e3 {[%emt 0:00:24]} c4 {[%emt 0:00:15]} 8. Be2 {[%emt 0:01:18]} Nbd7 {[%emt 0:00:09]} 9. O-O {[%emt 0:00:59]} Bb4 {[%emt 0:00:06]} 10. Ne5 {[%emt 0:00:42]} O-O {[%emt 0:01:27]} 11. Nxd7 {[%emt 0:14:00]} Qxd7 {[%emt 0:00:11]} 12. Bxf6 {[%emt 0:00:48]} gxf6 {[%emt 0:00:03]} 13. Qc1 {[%emt 0:06:52]} b5 {[%emt 0:04:27]} 14. Rd1 {[%emt 0:03:25]} Bf5 {[%emt 0:08:32]} 15. e4 {[%emt 0:05:49]} Bxc3 {[%emt 0:14:13]} 16. exf5 {[%emt 0:03:40]} Ba5 {[%emt 0:00:11]} 17. Bg4 {[%emt 0:03:08]} Kh8 {[%emt 0:04:31]} 18. Qh6 {[%emt 0:01:28]} Qd6 {[%emt 0:01:00]} 19. g3 {[%emt 0:03:20]} Rae8 {[%emt 0:12:31]} 20. Bh5 {[%emt 0:02:54]} Kg8 {[%emt 0:10:51]} 21. Bf3 {[%emt 0:01:41]} Re7 {[%emt 0:00:57]} 22. Bxd5 {[%emt 0:02:26]} Re2 {[%emt 0:01:07]} 23. Qh5 {[%emt 0:13:14]} Rxb2 {[%emt 0:00:48]} 24. Qg4+ {[%emt 0:00:35]} Kh8 {[%emt 0:00:02]} 25. Qh4 {[%emt 0:01:21]} c3 {[%emt 0:13:45]} 26. Bb3 {[%emt 0:01:05]} c2 {[%emt 0:00:58]} 27. Rdc1 {[%emt 0:02:28]} Bc3 {[%emt 0:00:11]} 28. Qe4 {[%emt 0:04:10]} Qxd4 {[%emt 0:04:14]} 29. Qe7 {[%emt 0:04:01]} Kg7 {[%emt 0:00:34]} 30. Bxc2 {[%emt 0:06:13]} Rxc2 {[%emt 0:00:08]} 31. Rxc2 {[%emt 0:00:14]} Bxa1 {[%emt 0:00:09]} 32. Re2 {[%emt 0:00:08]} Qd5 {[%emt 0:03:34]} 33. Re4 {[%emt 0:00:41]} Qxf5 {[%emt 0:00:29]} 34. Rf4 {[%emt 0:00:20]} Qe6 {[%emt 0:01:04]} 35. Qb4 {[%emt 0:01:26]} Rd8 {[%emt 0:02:05]} 36. Kg2 {[%emt 0:01:16]} Rd5 {[%emt 0:01:35]} 37. Rh4 {[%emt 0:01:09]} Qc6 {[%emt 0:01:35]} 38. Kh3 {[%emt 0:00:46]} Qd7+ {[%emt 0:00:07]} 39. Kg2 {[%emt 0:03:02]} Rd4 {[%emt 0:00:01]} 0-1

[Event "27th OIBM 2024"]
[Site "Gmund am Tegernsee"]
[Date "2024.10.27"]
[Round "2.28"]
[White "Hrebenshchykova, Yelyzaveta"]
[Black "Faika, Michael"]
[Result "1-0"]
[ECO "A07"]
[WhiteElo "2311"]
[BlackElo "2130"]
[Annotator "RC"]
[PlyCount "71"]
[EventDate "2024.09.16"]
[EventType "swiss"]
[EventCountry "GER"]
[SourceTitle "playchess.com"]
[Source "ChessBase"]
[SourceQuality "1"]
[TimeControl "40/5400+30:1800+30"]

1. Nf3 {[%emt 0:00:03]} d5 {[%emt 0:01:56]} 2. g3 {[%emt 0:00:17]} h5 {[%emt 0:01:08]} 3. Bg2 {[%emt 0:15:09]} h4 {[%emt 0:04:53]} 4. Nxh4 {[%emt 0:06:23]} e5 {[%emt 0:01:59]} 5. d3 {[%emt 0:00:39]} Bc5 {[%emt 0:14:15]} 6. e3 {[%emt 0:17:55]} Qe7 {[%emt 0:16:13]} 7. Nc3 {[%emt 0:07:31]} c6 {[%emt 0:02:44]} 8. e4 {[%emt 0:03:15]} d4 {[%emt 0:00:51]} 9. Ne2 {[%emt 0:01:11]} g5 {[%emt 0:01:57]} 10. Nf3 {[%emt 0:01:27]} f6 {[%emt 0:00:46]} 11. h4 {[%emt 0:02:40]} g4 {[%emt 0:03:50]} 12. Nd2 {[%emt 0:02:00]} Be6 {[%emt 0:00:46]} 13. c3 {[%emt 0:00:58]} Na6 {[%emt 0:01:15]} 14. cxd4 {[%emt 0:03:36]} exd4 {[%emt 0:09:38]} 15. a3 {[%emt 0:00:17]} O-O-O {[%emt 0:00:53]} 16. b4 {[%emt 0:01:28]} Bb6 {[%emt 0:00:29]} 17. O-O {[%emt 0:00:22]} Qf7 {[%emt 0:02:53]} 18. Nf4 {[%emt 0:06:51]} Nc7 {[%emt 0:04:37]} 19. a4 {[%emt 0:00:30]} Ne8 {[%emt 0:02:10]} 20. Nxe6 {[%emt 0:02:04]} Qxe6 {[%emt 0:00:07]} 21. Nc4 {[%emt 0:00:31]} Bc7 {[%emt 0:00:23]} 22. b5 {[%emt 0:00:23]} c5 {[%emt 0:01:00]} 23. a5 {[%emt 0:00:24]} Bb8 {[%emt 0:05:46]} 24. Qb3 {[%emt 0:02:23]} Kd7 {[%emt 0:01:22]} 25. e5 {[%emt 0:05:04]} fxe5 {[%emt 0:02:19]} 26. Bd5 {[%emt 0:00:13]} Qe7 {[%emt 0:00:48]} 27. Re1 {[%emt 0:07:57]} Ngf6 {[%emt 0:01:10]} 28. Bxb7 {[%emt 0:01:18]} Ng7 {[%emt 0:03:14]} 29. Bf4 {[%emt 0:02:10]} Rh5 {[%emt 0:02:12]} 30. Bc6+ {[%emt 0:01:47]} Kc8 {[%emt 0:00:56]} 31. b6 {[%emt 0:00:07]} Rdh8 {[%emt 0:00:44]} 32. bxa7 {[%emt 0:01:15]} Qxa7 {[%emt 0:00:09]} 33. Nxe5 {[%emt 0:02:00]} Bd6 {[%emt 0:01:26]} 34. a6 {[%emt 0:01:26]} Rf8 {[%emt 0:01:58]} 35. Bb7+ {[%emt 0:01:20]} Kc7 {[%emt 0:00:38]} 36. Nc6 {[%emt 0:00:53]} 1-0

[Event "27th OIBM 2024"]
[Site "Gmund am Tegernsee"]
[Date "2024.10.27"]
[Round "2.29"]
[White "Gut, Raphael"]
[Black "Wong, Gengchun"]
[Result "1/2-1/2"]
[ECO "D85"]
[WhiteElo "2053"]
[BlackElo "2295"]
[Annotator "RC"]
[PlyCount "77"]
[EventDate "2024.09.16"]
[EventType "swiss"]
[EventCountry "GER"]
[SourceTitle "playchess.com"]
[Source "ChessBase"]
[SourceQuality "1"]
[TimeControl "40/5400+30:1800+30"]

1. d4 {[%emt 0:00:13]} Nf6 {[%emt 0:00:05]} 2. c4 {[%emt 0:00:02]} g6 {[%emt 0:00:05]} 3. Nc3 {[%emt 0:00:02]} d5 {[%emt 0:00:09]} 4. cxd5 {[%emt 0:00:03]} Nxd5 {[%emt 0:00:05]} 5. e4 {[%emt 0:00:03]} Nxc3 {[%emt 0:00:06]} 6. bxc3 {[%emt 0:00:02]} Bg7 {[%emt 0:00:07]} 7. Nf3 {[%emt 0:00:02]} O-O {[%emt 0:00:16]} 8. Be3 {[%emt 0:00:45]} c5 {[%emt 0:00:06]} 9. Rc1 {[%emt 0:07:45]} cxd4 {[%emt 0:07:11]} 10. cxd4 {[%emt 0:00:21]} Bg4 {[%emt 0:04:30]} 11. Be2 {[%emt 0:02:33]} Qa5+ {[%emt 0:19:27]} 12. Qd2 {[%emt 0:00:55]} Qxd2+ {[%emt 0:00:17]} 13. Nxd2 {[%emt 0:01:07]} Bxe2 {[%emt 0:00:23]} 14. Kxe2 {[%emt 0:00:03]} e6 {[%emt 0:00:38]} 15. Rc7 {[%emt 1:24:04]} Nc6 {[%emt 0:00:58]} 16. Nb3 {[%emt 0:00:00]} Rfd8 {[%emt 0:01:01]} 17. Rd1 {[%emt 0:00:00]} Rab8 {[%emt 0:03:20]} 18. h4 {[%emt 0:00:00]} h6 {[%emt 0:10:25]} 19. f4 {[%emt 0:00:00]} Bf8 {[%emt 0:24:29]} 20. Nc5 {[%emt 0:00:00]} Na5 {[%emt 0:13:20]} 21. h5 {[%emt 0:00:00]} gxh5 {[%emt 0:02:48]} 22. Nd7 {[%emt 0:00:00]} Bd6 {[%emt 0:02:12]} 23. Nf6+ {[%emt 0:00:00]} Kf8 {[%emt 0:03:02]} 24. Rc2 {[%emt 0:00:00]} Rbc8 {[%emt 0:01:01]} 25. Rdc1 {[%emt 0:00:00]} Rxc2+ {[%emt 0:02:28]} 26. Rxc2 {[%emt 0:00:00]} Kg7 {[%emt 0:01:44]} 27. Nxh5+ {[%emt 0:00:00]} Kg6 {[%emt 0:00:03]} 28. g4 {[%emt 0:00:00]} f5 {[%emt 0:00:22]} 29. gxf5+ {[%emt 0:00:00]} exf5 {[%emt 0:00:26]} 30. exf5+ {[%emt 0:00:00]} Kxf5 {[%emt 0:00:21]} 31. Kf3 {[%emt 0:00:00]} Nc6 {[%emt 0:01:07]} 32. Ng3+ {[%emt 0:00:00]} Kg6 {[%emt 0:00:59]} 33. Rh2 {[%emt 0:00:05]} Bf8 {[%emt 0:00:34]} 34. f5+ {[%emt 0:01:16]} Kf7 {[%emt 0:00:42]} 35. Ne2 {[%emt 0:00:48]} Bg7 {[%emt 0:00:27]} 36. Rh4 {[%emt 0:01:46]} b5 {[%emt 0:00:50]} 37. f6 {[%emt 0:01:48]} Bxf6 {[%emt 0:01:04]} 38. Rxh6 {[%emt 0:00:03]} Nxd4+ {[%emt 0:00:35]} 39. Ke4 {[%emt 0:06:14]} 1/2-1/2